[Event "Titled Tuesday Blitz April 11 Late 2023"]
[White "Cueto, Jonny"]
[Black "Martin Barcelo, Carles"]
[WhiteFideId "3300145"]
[BlackFideId "24561444"]
[WhiteElo "2234"]
[BlackElo "2089"]
[Result "0-1"]
[Round "02"]
[TimeControl "180+2"]
[Date "2023.04.11"]
[WhiteClock "0:00:51"]
[BlackClock "0:00:13"]

1. d4 {[%clk 0:02:58]}  b6 {[%clk 0:01:15]} 2. Bf4 {[%clk 0:02:54]}  Bb7 {[%clk 0:01:15]} 3. e3 {[%clk 0:02:55]}  e6 {[%clk 0:01:15]} 4. Nf3 {[%clk 0:02:55]}  Nf6 {[%clk 0:01:13]} 5. c4 {[%clk 0:02:54]}  Be7 {[%clk 0:01:13]} 6. h3 {[%clk 0:02:54]}  O-O {[%clk 0:01:14]} 7. Nc3 {[%clk 0:02:54]}  d6 {[%clk 0:01:14]} 8. Bd3 {[%clk 0:02:55]}  Nbd7 {[%clk 0:01:15]} 9. O-O {[%clk 0:02:51]}  a6 {[%clk 0:01:15]} 10. Bh2 {[%clk 0:02:48]}  c5 {[%clk 0:01:15]} 11. d5 {[%clk 0:02:45]}  e5 {[%clk 0:01:12]} 12. e4 {[%clk 0:02:42]}  g6 {[%clk 0:01:07]} 13. Nd2 {[%clk 0:02:42]}  Nh5 {[%clk 0:01:07]} 14. g4 {[%clk 0:02:39]}  Nf4 {[%clk 0:01:07]} 15. Qf3 {[%clk 0:02:32]}  Bg5 {[%clk 0:01:04]} 16. Bxf4 {[%clk 0:02:18]}  exf4 {[%clk 0:01:02]} 17. Be2 {[%clk 0:01:56]}  Ne5 {[%clk 0:01:00]} 18. Qg2 {[%clk 0:01:56]}  Bc8 {[%clk 0:00:48]} 19. f3 {[%clk 0:01:55]}  Bh4 {[%clk 0:00:45]} 20. Bd1 {[%clk 0:01:53]}  Bg3 {[%clk 0:00:45]} 21. Ne2 {[%clk 0:01:53]}  Qh4 {[%clk 0:00:29]} 22. Nxg3 {[%clk 0:01:52]}  fxg3 {[%clk 0:00:26]} 23. f4 {[%clk 0:01:53]}  Nd3 {[%clk 0:00:24]} 24. Rf3 {[%clk 0:01:43]}  Ne1 {[%clk 0:00:24]} 25. Qxg3 {[%clk 0:01:36]}  Nxf3+ {[%clk 0:00:24]} 26. Qxf3 {[%clk 0:01:37]}  Bd7 {[%clk 0:00:18]} 27. f5 {[%clk 0:01:37]}  Rae8 {[%clk 0:00:17]} 28. Kg2 {[%clk 0:01:31]}  Kh8 {[%clk 0:00:16]} 29. f6 {[%clk 0:01:24]}  Re5 {[%clk 0:00:14]} 30. Bc2 {[%clk 0:01:21]}  Rfe8 {[%clk 0:00:14]} 31. Nf1 {[%clk 0:01:21]}  h5 {[%clk 0:00:14]} 32. Ng3 {[%clk 0:01:21]}  Kg8 {[%clk 0:00:09]} 33. Qf4 {[%clk 0:01:13]}  hxg4 {[%clk 0:00:08]} 34. hxg4 {[%clk 0:01:12]}  Bxg4 {[%clk 0:00:05]} 35. Qf2 {[%clk 0:00:52]}  Bh3+ {[%clk 0:00:04]} 36. Kg1 {[%clk 0:00:48]}  Rg5 {[%clk 0:00:05]} 37. Kh2 {[%clk 0:00:46]}  Bf1+ {[%clk 0:00:04]} 38. Kg1 {[%clk 0:00:44]}  Rxg3+ {[%clk 0:00:03]} 39. Kxf1 {[%clk 0:00:45]}  Qh1+ {[%clk 0:00:03]} 40. Ke2 {[%clk 0:00:44]}  Rxe4+ {[%clk 0:00:02]} 41. Bxe4 {[%clk 0:00:43]}  Qxe4+ {[%clk 0:00:03]} 42. Kf1 {[%clk 0:00:39]}  Qd3+ {[%clk 0:00:03]} 43. Ke1 {[%clk 0:00:39]}  Re3+ {[%clk 0:00:03]} 44. Qxe3 {[%clk 0:00:39]}  Qxe3+ {[%clk 0:00:03]} 45. Kd1 {[%clk 0:00:40]}  Qd3+ {[%clk 0:00:04]} 46. Kc1 {[%clk 0:00:40]}  Qxc4+ {[%clk 0:00:04]} 47. Kd1 {[%clk 0:00:41]}  Qd3+ {[%clk 0:00:04]} 48. Kc1 {[%clk 0:00:42]}  Qe3+ {[%clk 0:00:04]} 49. Kd1 {[%clk 0:00:42]}  Qg1+ {[%clk 0:00:05]} 50. Kc2 {[%clk 0:00:43]}  Qxa1 {[%clk 0:00:06]} 51. a3 {[%clk 0:00:43]}  Qa2 {[%clk 0:00:06]} 52. a4 {[%clk 0:00:44]}  Qxd5 {[%clk 0:00:06]} 53. b3 {[%clk 0:00:43]}  Qd4 {[%clk 0:00:07]} 54. Kb1 {[%clk 0:00:44]}  Qxf6 {[%clk 0:00:08]} 55. Ka2 {[%clk 0:00:44]}  Qc3 {[%clk 0:00:08]} 56. Ka3 {[%clk 0:00:45]}  g5 {[%clk 0:00:09]} 57. a5 {[%clk 0:00:46]}  Qxa5+ {[%clk 0:00:09]} 58. Kb2 {[%clk 0:00:47]}  Qb4 {[%clk 0:00:10]} 59. Kc2 {[%clk 0:00:47]}  g4 {[%clk 0:00:10]} 60. Kb2 {[%clk 0:00:48]}  g3 {[%clk 0:00:11]} 61. Kc2 {[%clk 0:00:49]}  g2 {[%clk 0:00:12]} 62. Kd3 {[%clk 0:00:50]}  g1=Q {[%clk 0:00:13]} 63. Ke2 {[%clk 0:00:50]}  Qe4+ {[%clk 0:00:12]} 64. Kd2 {[%clk 0:00:51]}  Qge1# {[%clk 0:00:13]} 0-1


[Site "https://www.chess.com"]

[Event "Titled Tuesday Blitz April 11 Late 2023"]
[White "Barria Santos, Jose Guilherme"]
[Black "Kaplan, Avi Harrison"]
[WhiteFideId "1939300"]
[BlackFideId "30934559"]
[WhiteElo "2266"]
[BlackElo "1983"]
[Result "1-0"]
[Round "02"]
[TimeControl "180+2"]
[Date "2023.04.11"]
[WhiteClock "0:01:22"]
[BlackClock "0:00:03"]

1. Nf3 {[%clk 0:02:54]}  h6 {[%clk 0:02:56]} 2. g3 {[%clk 0:02:55]}  g5 {[%clk 0:02:55]} 3. Bg2 {[%clk 0:02:56]}  g4 {[%clk 0:02:56]} 4. Ng1 {[%clk 0:02:55]}  d5 {[%clk 0:02:55]} 5. d3 {[%clk 0:02:56]}  h5 {[%clk 0:02:53]} 6. Nd2 {[%clk 0:02:57]}  h4 {[%clk 0:02:54]} 7. c3 {[%clk 0:02:50]}  h3 {[%clk 0:02:38]} 8. Bf1 {[%clk 0:02:47]}  e5 {[%clk 0:02:36]} 9. e3 {[%clk 0:02:48]}  Nc6 {[%clk 0:02:32]} 10. Be2 {[%clk 0:02:49]}  e4 {[%clk 0:02:27]} 11. dxe4 {[%clk 0:02:43]}  Ne5 {[%clk 0:02:27]} 12. f4 {[%clk 0:02:39]}  gxf3 {[%clk 0:02:09]} 13. Ngxf3 {[%clk 0:02:39]}  Ng4 {[%clk 0:02:04]} 14. Nf1 {[%clk 0:02:32]}  Bc5 {[%clk 0:01:28]} 15. Qxd5 {[%clk 0:02:27]}  Qe7 {[%clk 0:01:26]} 16. Nd4 {[%clk 0:02:24]}  N8f6 {[%clk 0:01:08]} 17. Qc4 {[%clk 0:02:25]}  Nxe4 {[%clk 0:01:04]} 18. b4 {[%clk 0:02:23]}  Ngf2 {[%clk 0:00:49]} 19. bxc5 {[%clk 0:02:20]}  Nxh1 {[%clk 0:00:49]} 20. c6 {[%clk 0:02:19]}  b6 {[%clk 0:00:46]} 21. Bf3 {[%clk 0:02:20]}  Nhf2 {[%clk 0:00:45]} 22. Nd2 {[%clk 0:02:11]}  Nxd2 {[%clk 0:00:38]} 23. Bxd2 {[%clk 0:02:12]}  Ng4 {[%clk 0:00:37]} 24. Nf5 {[%clk 0:02:01]}  Bxf5 {[%clk 0:00:35]} 25. Bxg4 {[%clk 0:02:01]}  Bxg4 {[%clk 0:00:28]} 26. Qxg4 {[%clk 0:02:02]}  Qe6 {[%clk 0:00:27]} 27. Qd4 {[%clk 0:02:03]}  Ke7 {[%clk 0:00:20]} 28. c4 {[%clk 0:02:02]}  Rhd8 {[%clk 0:00:18]} 29. Bb4+ {[%clk 0:02:02]}  Rd6 {[%clk 0:00:15]} 30. O-O-O {[%clk 0:02:02]}  Rd8 {[%clk 0:00:13]} 31. Qh4+ {[%clk 0:01:58]}  Ke8 {[%clk 0:00:04]} 32. Kb2 {[%clk 0:01:22]}  Rxd1 {[%clk 0:00:03]} 33. Qh8# {[%clk 0:01:22]} 1-0


[Site "https://www.chess.com"]

[Event "Titled Tuesday Blitz April 11 Late 2023"]
[White "Filgueiras, Nathan Felipe"]
[Black "Koc, Przemyslaw"]
[WhiteFideId "2188562"]
[BlackFideId "1109081"]
[WhiteElo "2241"]
[BlackElo "2161"]
[Result "0-1"]
[Round "02"]
[TimeControl "180+2"]
[Date "2023.04.11"]
[WhiteClock "0:01:36"]
[BlackClock "0:01:00"]

1. e4 {[%clk 0:03:00]}  d6 {[%clk 0:02:59]} 2. d4 {[%clk 0:02:58]}  Nf6 {[%clk 0:02:59]} 3. Nc3 {[%clk 0:02:57]}  e5 {[%clk 0:02:58]} 4. dxe5 {[%clk 0:02:57]}  dxe5 {[%clk 0:02:59]} 5. Qxd8+ {[%clk 0:02:57]}  Kxd8 {[%clk 0:03:00]} 6. Be3 {[%clk 0:02:57]}  Be6 {[%clk 0:02:59]} 7. O-O-O+ {[%clk 0:02:56]}  Nbd7 {[%clk 0:02:58]} 8. Bb5 {[%clk 0:02:57]}  c6 {[%clk 0:02:58]} 9. Ba4 {[%clk 0:02:58]}  Ng4 {[%clk 0:02:51]} 10. Bg5+ {[%clk 0:02:51]}  f6 {[%clk 0:02:51]} 11. Bh4 {[%clk 0:02:51]}  Bc5 {[%clk 0:02:51]} 12. Nh3 {[%clk 0:02:50]}  Nh6 {[%clk 0:02:38]} 13. f3 {[%clk 0:02:49]}  Bxh3 {[%clk 0:02:37]} 14. gxh3 {[%clk 0:02:50]}  Nf7 {[%clk 0:02:32]} 15. Bb3 {[%clk 0:02:48]}  Ke7 {[%clk 0:02:32]} 16. Rxd7+ {[%clk 0:02:47]}  Kxd7 {[%clk 0:02:31]} 17. Bxf7 {[%clk 0:02:47]}  Kc7 {[%clk 0:02:19]} 18. Rd1 {[%clk 0:02:42]}  b5 {[%clk 0:02:15]} 19. Ne2 {[%clk 0:02:40]}  g5 {[%clk 0:02:11]} 20. Be1 {[%clk 0:02:40]}  Rad8 {[%clk 0:02:06]} 21. Ng3 {[%clk 0:02:25]}  Be3+ {[%clk 0:02:00]} 22. Bd2 {[%clk 0:02:25]}  Rxd2 {[%clk 0:01:59]} 23. Rxd2 {[%clk 0:02:26]}  Rd8 {[%clk 0:01:59]} 24. Nf1 {[%clk 0:02:25]}  Bxd2+ {[%clk 0:01:50]} 25. Nxd2 {[%clk 0:02:26]}  c5 {[%clk 0:01:49]} 26. Kd1 {[%clk 0:02:23]}  c4 {[%clk 0:01:46]} 27. Ke2 {[%clk 0:02:23]}  Kb6 {[%clk 0:01:47]} 28. Nf1 {[%clk 0:02:22]}  Kc5 {[%clk 0:01:45]} 29. Ne3 {[%clk 0:02:22]}  a5 {[%clk 0:01:44]} 30. Nd5 {[%clk 0:02:17]}  Rd6 {[%clk 0:01:43]} 31. Kf2 {[%clk 0:02:08]}  h6 {[%clk 0:01:35]} 32. Kg3 {[%clk 0:01:56]}  b4 {[%clk 0:01:36]} 33. Kg4 {[%clk 0:01:56]}  a4 {[%clk 0:01:29]} 34. Kh5 {[%clk 0:01:53]}  a3 {[%clk 0:01:24]} 35. b3 {[%clk 0:01:50]}  cxb3 {[%clk 0:01:21]} 36. cxb3 {[%clk 0:01:51]}  Kb5 {[%clk 0:01:10]} 37. Kxh6 {[%clk 0:01:50]}  Rc6 {[%clk 0:01:11]} 38. Ne3 {[%clk 0:01:48]}  Rc3 {[%clk 0:01:07]} 39. Bc4+ {[%clk 0:01:47]}  Kc5 {[%clk 0:01:05]} 40. Nd5 {[%clk 0:01:42]}  Rxf3 {[%clk 0:01:02]} 41. Kg6 {[%clk 0:01:42]}  Rxh3 {[%clk 0:01:01]} 42. Nxf6 {[%clk 0:01:42]}  Rxh2 {[%clk 0:01:01]} 43. Kxg5 {[%clk 0:01:43]}  Rxa2 {[%clk 0:01:01]} 44. Nd7+ {[%clk 0:01:41]}  Kd4 {[%clk 0:01:01]} 45. Kf5 {[%clk 0:01:35]}  Rf2+ {[%clk 0:01:00]} 46. Ke6 {[%clk 0:01:36]}  a2 {[%clk 0:01:00]} 0-1


[Site "https://www.chess.com"]

[Event "Titled Tuesday Blitz April 11 Late 2023"]
[White "Davtyan, David Arm."]
[Black "Winkels, Marcel"]
[WhiteFideId "13310046"]
[BlackFideId "1003887"]
[WhiteElo "2274"]
[BlackElo "1900"]
[Result "0-1"]
[Round "02"]
[TimeControl "180+2"]
[Date "2023.04.11"]
[WhiteClock "0:00:46"]
[BlackClock "0:00:12"]

1. e4 {[%clk 0:03:00]}  e5 {[%clk 0:02:58]} 2. Nf3 {[%clk 0:03:00]}  Nf6 {[%clk 0:02:58]} 3. Nc3 {[%clk 0:03:01]}  Nc6 {[%clk 0:02:53]} 4. Be2 {[%clk 0:03:00]}  Bc5 {[%clk 0:02:50]} 5. Nxe5 {[%clk 0:03:00]}  Nxe5 {[%clk 0:02:47]} 6. d4 {[%clk 0:03:00]}  Bd6 {[%clk 0:02:45]} 7. dxe5 {[%clk 0:03:00]}  Bxe5 {[%clk 0:02:46]} 8. Nb5 {[%clk 0:03:01]}  O-O {[%clk 0:02:38]} 9. f4 {[%clk 0:03:00]}  Bd6 {[%clk 0:02:12]} 10. e5 {[%clk 0:02:40]}  Bc5 {[%clk 0:02:11]} 11. exf6 {[%clk 0:02:39]}  Qxf6 {[%clk 0:02:12]} 12. Nxc7 {[%clk 0:02:29]}  Rb8 {[%clk 0:02:09]} 13. Nd5 {[%clk 0:02:23]}  Qh4+ {[%clk 0:01:59]} 14. g3 {[%clk 0:02:19]}  Qh3 {[%clk 0:01:58]} 15. Be3 {[%clk 0:02:00]}  Bxe3 {[%clk 0:01:25]} 16. Nxe3 {[%clk 0:02:00]}  Re8 {[%clk 0:01:26]} 17. Qd2 {[%clk 0:01:53]}  d5 {[%clk 0:01:19]} 18. O-O-O {[%clk 0:01:50]}  Be6 {[%clk 0:01:06]} 19. f5 {[%clk 0:01:16]}  Bxf5 {[%clk 0:01:05]} 20. Nxf5 {[%clk 0:00:59]}  Qxf5 {[%clk 0:01:02]} 21. Bd3 {[%clk 0:01:00]}  Qe6 {[%clk 0:00:57]} 22. Rhe1 {[%clk 0:00:59]}  Qb6 {[%clk 0:00:54]} 23. Rxe8+ {[%clk 0:00:57]}  Rxe8 {[%clk 0:00:53]} 24. Re1 {[%clk 0:00:58]}  Rd8 {[%clk 0:00:52]} 25. Qg5 {[%clk 0:00:54]}  h6 {[%clk 0:00:37]} 26. Qf5 {[%clk 0:00:49]}  g6 {[%clk 0:00:37]} 27. Qf4 {[%clk 0:00:45]}  a5 {[%clk 0:00:31]} 28. Qxh6 {[%clk 0:00:43]}  a4 {[%clk 0:00:26]} 29. Qe3 {[%clk 0:00:43]}  Qb4 {[%clk 0:00:24]} 30. Qe7 {[%clk 0:00:41]}  Kg7 {[%clk 0:00:20]} 31. Rf1 {[%clk 0:00:39]}  Qxe7 {[%clk 0:00:17]} 32. a3 {[%clk 0:00:36]}  d4 {[%clk 0:00:16]} 33. Rd1 {[%clk 0:00:37]}  Qe3+ {[%clk 0:00:15]} 34. Kb1 {[%clk 0:00:37]}  Re8 {[%clk 0:00:15]} 35. Bb5 {[%clk 0:00:37]}  Re7 {[%clk 0:00:13]} 36. Bxa4 {[%clk 0:00:37]}  Qf2 {[%clk 0:00:13]} 37. Bb3 {[%clk 0:00:37]}  Re1 {[%clk 0:00:12]} 38. Rxe1 {[%clk 0:00:37]}  Qxe1+ {[%clk 0:00:12]} 39. Ka2 {[%clk 0:00:38]}  Qe2 {[%clk 0:00:11]} 40. a4 {[%clk 0:00:38]}  Qxh2 {[%clk 0:00:11]} 41. Ka3 {[%clk 0:00:37]}  Qxg3 {[%clk 0:00:12]} 42. Kb4 {[%clk 0:00:37]}  f5 {[%clk 0:00:11]} 43. Bc4 {[%clk 0:00:37]}  f4 {[%clk 0:00:11]} 44. Bd3 {[%clk 0:00:38]}  f3 {[%clk 0:00:12]} 45. Kc4 {[%clk 0:00:38]}  f2 {[%clk 0:00:12]} 46. Kxd4 {[%clk 0:00:38]}  Qf4+ {[%clk 0:00:11]} 47. Kc3 {[%clk 0:00:39]}  f1=Q {[%clk 0:00:12]} 48. Bxf1 {[%clk 0:00:40]}  Qxf1 {[%clk 0:00:11]} 49. Kb3 {[%clk 0:00:40]}  g5 {[%clk 0:00:11]} 50. c3 {[%clk 0:00:41]}  g4 {[%clk 0:00:12]} 51. Kb4 {[%clk 0:00:42]}  g3 {[%clk 0:00:12]} 52. b3 {[%clk 0:00:43]}  g2 {[%clk 0:00:13]} 53. c4 {[%clk 0:00:44]}  g1=Q {[%clk 0:00:13]} 54. a5 {[%clk 0:00:45]}  Qd4 {[%clk 0:00:13]} 55. Kb5 {[%clk 0:00:46]}  Qf5+ {[%clk 0:00:12]} 0-1


[Site "https://www.chess.com"]

[Event "Titled Tuesday Blitz April 11 Late 2023"]
[White "Levine, David"]
[Black "Dzida, Kamil"]
[WhiteFideId "2011611"]
[BlackFideId "21828652"]
[WhiteElo "2040"]
[BlackElo "2139"]
[Result "1-0"]
[Round "02"]
[TimeControl "180+2"]
[Date "2023.04.11"]
[WhiteClock "0:00:36"]
[BlackClock "0:00:17"]

1. d4 {[%clk 0:02:59]}  Nf6 {[%clk 0:03:00]} 2. c4 {[%clk 0:02:59]}  e6 {[%clk 0:03:00]} 3. g3 {[%clk 0:02:58]}  d5 {[%clk 0:02:59]} 4. Bg2 {[%clk 0:02:58]}  Be7 {[%clk 0:02:59]} 5. Nf3 {[%clk 0:02:57]}  O-O {[%clk 0:02:59]} 6. O-O {[%clk 0:02:57]}  dxc4 {[%clk 0:03:00]} 7. Na3 {[%clk 0:02:57]}  Bxa3 {[%clk 0:02:54]} 8. bxa3 {[%clk 0:02:56]}  Nc6 {[%clk 0:02:54]} 9. Rb1 {[%clk 0:02:50]}  Rb8 {[%clk 0:02:48]} 10. a4 {[%clk 0:02:49]}  b6 {[%clk 0:02:45]} 11. Ba3 {[%clk 0:02:45]}  Re8 {[%clk 0:02:41]} 12. e3 {[%clk 0:02:36]}  Nd5 {[%clk 0:02:29]} 13. Qc2 {[%clk 0:02:32]}  Ba6 {[%clk 0:02:23]} 14. Rfd1 {[%clk 0:02:27]}  Qc8 {[%clk 0:01:43]} 15. Bf1 {[%clk 0:02:09]}  Na5 {[%clk 0:01:40]} 16. e4 {[%clk 0:01:58]}  Nf6 {[%clk 0:01:40]} 17. e5 {[%clk 0:01:52]}  Nd5 {[%clk 0:01:39]} 18. Ng5 {[%clk 0:01:52]}  g6 {[%clk 0:01:33]} 19. Ne4 {[%clk 0:01:45]}  c3 {[%clk 0:01:25]} 20. Bg2 {[%clk 0:01:27]}  Nc4 {[%clk 0:01:14]} 21. Bc1 {[%clk 0:01:17]}  Qd7 {[%clk 0:01:08]} 22. Bg5 {[%clk 0:01:06]}  Na3 {[%clk 0:00:59]} 23. Qc1 {[%clk 0:01:00]}  Nxb1 {[%clk 0:00:34]} 24. Bf6 {[%clk 0:01:00]}  Nxf6 {[%clk 0:00:35]} 25. Nxf6+ {[%clk 0:00:59]}  Kg7 {[%clk 0:00:34]} 26. Nxd7 {[%clk 0:00:57]}  Rbd8 {[%clk 0:00:33]} 27. Nf6 {[%clk 0:00:51]}  Re7 {[%clk 0:00:22]} 28. Qxb1 {[%clk 0:00:51]}  c5 {[%clk 0:00:21]} 29. dxc5 {[%clk 0:00:38]}  Rxd1+ {[%clk 0:00:19]} 30. Qxd1 {[%clk 0:00:38]}  Rc7 {[%clk 0:00:19]} 31. c6 {[%clk 0:00:36]}  Bc4 {[%clk 0:00:17]} 32. Qc2 {[%clk 0:00:36]} 1-0


[Site "https://www.chess.com"]

[Event "Titled Tuesday Blitz April 11 Late 2023"]
[White "Kovalevsky, Stanislav"]
[Black "Gabriel, Robert"]
[WhiteFideId "13508598"]
[BlackFideId "4606477"]
[WhiteElo "2174"]
[BlackElo "2203"]
[Result "1-0"]
[Round "02"]
[TimeControl "180+2"]
[Date "2023.04.11"]
[WhiteClock "0:00:37"]
[BlackClock "0:00:28"]

1. c4 {[%clk 0:03:00]}  e6 {[%clk 0:02:58]} 2. e4 {[%clk 0:03:00]}  c5 {[%clk 0:02:57]} 3. Nc3 {[%clk 0:03:00]}  Nc6 {[%clk 0:02:57]} 4. a3 {[%clk 0:03:00]}  Nf6 {[%clk 0:02:54]} 5. Rb1 {[%clk 0:03:01]}  d5 {[%clk 0:02:47]} 6. cxd5 {[%clk 0:03:00]}  exd5 {[%clk 0:02:46]} 7. exd5 {[%clk 0:03:01]}  Nxd5 {[%clk 0:02:44]} 8. Bc4 {[%clk 0:03:00]}  Be6 {[%clk 0:02:37]} 9. Nge2 {[%clk 0:02:57]}  Be7 {[%clk 0:02:35]} 10. O-O {[%clk 0:02:53]}  O-O {[%clk 0:02:34]} 11. Bxd5 {[%clk 0:02:18]}  Bxd5 {[%clk 0:02:33]} 12. Nf4 {[%clk 0:02:18]}  Bc4 {[%clk 0:02:25]} 13. d3 {[%clk 0:02:18]}  Ba6 {[%clk 0:02:21]} 14. Re1 {[%clk 0:02:18]}  Bf6 {[%clk 0:02:17]} 15. Be3 {[%clk 0:02:14]}  Bd4 {[%clk 0:02:15]} 16. Qh5 {[%clk 0:02:08]}  g6 {[%clk 0:02:10]} 17. Qh3 {[%clk 0:02:03]}  Qc8 {[%clk 0:02:03]} 18. Qg3 {[%clk 0:01:53]}  Qf5 {[%clk 0:01:56]} 19. Bxd4 {[%clk 0:01:47]}  Nxd4 {[%clk 0:01:48]} 20. Ncd5 {[%clk 0:01:44]}  Kh8 {[%clk 0:01:36]} 21. b4 {[%clk 0:01:34]}  b6 {[%clk 0:01:27]} 22. Nc7 {[%clk 0:01:29]}  Bb7 {[%clk 0:01:20]} 23. Nxa8 {[%clk 0:01:29]}  Bxa8 {[%clk 0:01:17]} 24. bxc5 {[%clk 0:01:25]}  Qxc5 {[%clk 0:01:13]} 25. Rbc1 {[%clk 0:01:09]}  Qf5 {[%clk 0:01:07]} 26. Re5 {[%clk 0:00:58]}  Qf6 {[%clk 0:00:53]} 27. Qe3 {[%clk 0:00:43]}  Nf5 {[%clk 0:00:51]} 28. Qe1 {[%clk 0:00:41]}  Kg7 {[%clk 0:00:39]} 29. h3 {[%clk 0:00:39]}  h6 {[%clk 0:00:36]} 30. Rc7 {[%clk 0:00:38]}  Qg5 {[%clk 0:00:28]} 31. Ne6+ {[%clk 0:00:37]} 1-0


[Site "https://www.chess.com"]

[Event "Titled Tuesday Blitz April 11 Late 2023"]
[White "Federzoni, Enzo"]
[Black "Sanchez, Robert"]
[WhiteFideId "2173301"]
[BlackFideId "2034360"]
[WhiteElo "2039"]
[BlackElo "1966"]
[Result "1-0"]
[Round "02"]
[TimeControl "180+2"]
[Date "2023.04.11"]
[WhiteClock "0:01:12"]
[BlackClock "0:01:09"]

1. c4 {[%clk 0:03:00]}  e6 {[%clk 0:02:56]} 2. d4 {[%clk 0:03:00]}  d5 {[%clk 0:02:56]} 3. Nf3 {[%clk 0:03:00]}  Be7 {[%clk 0:02:56]} 4. h3 {[%clk 0:03:00]}  Nf6 {[%clk 0:02:57]} 5. Nc3 {[%clk 0:02:56]}  O-O {[%clk 0:02:57]} 6. e3 {[%clk 0:02:50]}  c6 {[%clk 0:02:57]} 7. Bd3 {[%clk 0:02:50]}  Nbd7 {[%clk 0:02:57]} 8. O-O {[%clk 0:02:50]}  dxc4 {[%clk 0:02:57]} 9. Bxc4 {[%clk 0:02:50]}  b5 {[%clk 0:02:57]} 10. Bd3 {[%clk 0:02:50]}  a6 {[%clk 0:02:58]} 11. a4 {[%clk 0:02:48]}  Bb7 {[%clk 0:02:58]} 12. Qe2 {[%clk 0:02:46]}  b4 {[%clk 0:02:56]} 13. Ne4 {[%clk 0:02:46]}  c5 {[%clk 0:02:55]} 14. Nxf6+ {[%clk 0:02:45]}  Bxf6 {[%clk 0:02:54]} 15. Bd2 {[%clk 0:02:41]}  a5 {[%clk 0:02:51]} 16. Rfc1 {[%clk 0:02:39]}  cxd4 {[%clk 0:02:50]} 17. Nxd4 {[%clk 0:02:35]}  Ne5 {[%clk 0:02:43]} 18. Bb1 {[%clk 0:02:22]}  Ba6 {[%clk 0:02:41]} 19. Qh5 {[%clk 0:02:17]}  g6 {[%clk 0:02:40]} 20. Qd1 {[%clk 0:02:13]}  Nc4 {[%clk 0:02:16]} 21. Be1 {[%clk 0:01:51]}  Nxb2 {[%clk 0:01:59]} 22. Qb3 {[%clk 0:01:50]}  Bxd4 {[%clk 0:01:40]} 23. exd4 {[%clk 0:01:50]}  Qxd4 {[%clk 0:01:40]} 24. Ra2 {[%clk 0:01:39]}  Nd3 {[%clk 0:01:35]} 25. Rd1 {[%clk 0:01:34]}  Bc4 {[%clk 0:01:24]} 26. Qc2 {[%clk 0:01:21]}  Nxe1 {[%clk 0:01:22]} 27. Rxd4 {[%clk 0:01:18]}  Nxc2 {[%clk 0:01:21]} 28. Rxc2 {[%clk 0:01:19]}  Bd5 {[%clk 0:01:19]} 29. Rc5 {[%clk 0:01:13]}  Rfc8 {[%clk 0:01:16]} 30. Rxc8+ {[%clk 0:01:12]}  Rxc8 {[%clk 0:01:16]} 31. Bd3 {[%clk 0:01:12]}  Rc1+ {[%clk 0:01:11]} 32. Kh2 {[%clk 0:01:12]}  Rd1 {[%clk 0:01:09]} 1-0


[Site "https://www.chess.com"]

[Event "Titled Tuesday Blitz April 11 Late 2023"]
[White "Szpar, Milosz"]
[Black "Nakamura, Hikaru"]
[WhiteFideId "1184989"]
[BlackFideId "2016192"]
[WhiteElo "2436"]
[BlackElo "2885"]
[Result "0-1"]
[Round "03"]
[TimeControl "180+2"]
[Date "2023.04.11"]
[WhiteClock "0:00:01"]
[BlackClock "0:00:23"]

1. e4 {[%clk 0:03:00]}  e5 {[%clk 0:02:59]} 2. Nf3 {[%clk 0:03:00]}  Nc6 {[%clk 0:03:00]} 3. Bb5 {[%clk 0:03:00]}  a6 {[%clk 0:03:00]} 4. Ba4 {[%clk 0:03:00]}  d6 {[%clk 0:02:59]} 5. O-O {[%clk 0:02:57]}  Bd7 {[%clk 0:03:00]} 6. c3 {[%clk 0:02:57]}  g6 {[%clk 0:03:00]} 7. d4 {[%clk 0:02:57]}  Bg7 {[%clk 0:03:00]} 8. Re1 {[%clk 0:02:56]}  Nf6 {[%clk 0:03:00]} 9. Nbd2 {[%clk 0:02:51]}  O-O {[%clk 0:03:00]} 10. h3 {[%clk 0:02:47]}  b5 {[%clk 0:02:58]} 11. Bc2 {[%clk 0:02:46]}  exd4 {[%clk 0:02:53]} 12. Nxd4 {[%clk 0:02:40]}  Re8 {[%clk 0:02:50]} 13. N2f3 {[%clk 0:02:37]}  Ne5 {[%clk 0:02:47]} 14. Bf4 {[%clk 0:02:26]}  c5 {[%clk 0:02:43]} 15. Nb3 {[%clk 0:01:59]}  Qc7 {[%clk 0:02:43]} 16. Nxe5 {[%clk 0:01:54]}  dxe5 {[%clk 0:02:44]} 17. Bg5 {[%clk 0:01:54]}  Be6 {[%clk 0:02:34]} 18. Qf3 {[%clk 0:01:53]}  Nd7 {[%clk 0:02:33]} 19. Rad1 {[%clk 0:01:51]}  Nb6 {[%clk 0:02:33]} 20. a3 {[%clk 0:01:26]}  Na4 {[%clk 0:02:22]} 21. Bc1 {[%clk 0:01:25]}  c4 {[%clk 0:02:20]} 22. Nd2 {[%clk 0:01:25]}  Nc5 {[%clk 0:02:21]} 23. Nf1 {[%clk 0:01:24]}  f6 {[%clk 0:02:06]} 24. Ne3 {[%clk 0:01:24]}  h5 {[%clk 0:02:07]} 25. g4 {[%clk 0:01:23]}  hxg4 {[%clk 0:02:03]} 26. hxg4 {[%clk 0:01:18]}  Rad8 {[%clk 0:02:03]} 27. Nd5 {[%clk 0:01:17]}  Qf7 {[%clk 0:02:03]} 28. Be3 {[%clk 0:01:13]}  Bxd5 {[%clk 0:01:55]} 29. Bxc5 {[%clk 0:00:54]}  Bc6 {[%clk 0:01:53]} 30. Rxd8 {[%clk 0:00:51]}  Rxd8 {[%clk 0:01:54]} 31. Rd1 {[%clk 0:00:51]}  Rd7 {[%clk 0:01:54]} 32. Qe2 {[%clk 0:00:39]}  Bh6 {[%clk 0:01:51]} 33. f3 {[%clk 0:00:34]}  Rxd1+ {[%clk 0:01:42]} 34. Qxd1 {[%clk 0:00:34]}  Qd7 {[%clk 0:01:40]} 35. Kf1 {[%clk 0:00:31]}  Qxd1+ {[%clk 0:01:37]} 36. Bxd1 {[%clk 0:00:31]}  Bc1 {[%clk 0:01:37]} 37. b3 {[%clk 0:00:30]}  a5 {[%clk 0:01:34]} 38. bxc4 {[%clk 0:00:25]}  bxc4 {[%clk 0:01:35]} 39. Be2 {[%clk 0:00:25]}  Bb5 {[%clk 0:01:35]} 40. a4 {[%clk 0:00:25]}  Bxa4 {[%clk 0:01:31]} 41. Bxc4+ {[%clk 0:00:25]}  Kg7 {[%clk 0:01:32]} 42. Bb6 {[%clk 0:00:23]}  Bd1 {[%clk 0:01:32]} 43. Bxa5 {[%clk 0:00:19]}  Bxf3 {[%clk 0:01:32]} 44. Bd5 {[%clk 0:00:19]}  Bxg4 {[%clk 0:01:32]} 45. c4 {[%clk 0:00:19]}  Ba3 {[%clk 0:01:19]} 46. Bb6 {[%clk 0:00:18]}  Bb2 {[%clk 0:01:18]} 47. Bd8 {[%clk 0:00:15]}  Bd4 {[%clk 0:01:17]} 48. Be7 {[%clk 0:00:15]}  Bc3 {[%clk 0:01:14]} 49. Bd8 {[%clk 0:00:13]}  Bb4 {[%clk 0:01:15]} 50. Bb6 {[%clk 0:00:13]}  Kf8 {[%clk 0:01:13]} 51. Kf2 {[%clk 0:00:12]}  Ke7 {[%clk 0:01:13]} 52. c5 {[%clk 0:00:11]}  Be6 {[%clk 0:01:11]} 53. Ke3 {[%clk 0:00:10]}  f5 {[%clk 0:01:09]} 54. Kd3 {[%clk 0:00:06]}  f4 {[%clk 0:01:07]} 55. Ke2 {[%clk 0:00:05]}  Bg4+ {[%clk 0:01:05]} 56. Kf2 {[%clk 0:00:05]}  g5 {[%clk 0:01:04]} 57. c6 {[%clk 0:00:04]}  Bc8 {[%clk 0:01:04]} 58. Kg2 {[%clk 0:00:03]}  g4 {[%clk 0:01:04]} 59. Bc7 {[%clk 0:00:03]}  Bd6 {[%clk 0:01:01]} 60. Bb6 {[%clk 0:00:04]}  Kf6 {[%clk 0:00:59]} 61. Bd8+ {[%clk 0:00:04]}  Kg6 {[%clk 0:00:57]} 62. c7 {[%clk 0:00:04]}  Bc5 {[%clk 0:00:54]} 63. Bc4 {[%clk 0:00:04]}  Kg7 {[%clk 0:00:50]} 64. Kf1 {[%clk 0:00:04]}  Kf8 {[%clk 0:00:46]} 65. Bb5 {[%clk 0:00:03]}  Kf7 {[%clk 0:00:43]} 66. Kg2 {[%clk 0:00:03]}  Ke6 {[%clk 0:00:41]} 67. Kh2 {[%clk 0:00:02]}  Kd6 {[%clk 0:00:36]} 68. Kg2 {[%clk 0:00:02]}  Bb6 {[%clk 0:00:36]} 69. Bf6 {[%clk 0:00:01]}  Bxc7 {[%clk 0:00:33]} 70. Be2 {[%clk 0:00:01]}  Kc5 {[%clk 0:00:23]} 0-1


[Site "https://www.chess.com"]